bitfinex-derivatives/quotes_SOLF0:USTF0_20260203
["timestamp","ask_amount","ask_price","bid_price","bid_amount"]
[1770132927060,75.09185624,102.05,101.95,72.19077943]
[1770132927672,75.09185624,102.05,101.95,81.02567943]
[1770132927861,231.68,102.04,101.95,81.02567943]
[1770132928767,306.83185624,102.05,101.95,81.02567943]
[1770132929359,306.83185624,102.05,101.95,72.19077943]
[1770132929360,75.09185624,102.05,101.95,72.19077943]
[1770132929563,231.74,102.04,101.95,72.19077943]
[1770132930973,231.74,102.04,101.96,72.19077943]
[1770132931363,100.35342358,102.09,101.98,72.19077943]
[1770132931570,186.74,102.08,101.98,72.19077943]
[1770132931769,261.83185624,102.08,101.99,72.19077943]
[1770132931971,75.09185624,102.08,101.99,72.19077943]
[1770132932574,75.09185624,102.08,101.99,209.57457943]
[1770132932868,75.09185624,102.08,102.0,72.19077943]
[1770132933070,232.04,102.09,102.02,72.19077943]
[1770132933274,75.09185624,102.11,102.03,72.19077943]
[1770132933670,75.09185624,102.11,102.04,8.8274]
[1770132934174,232.04,102.13,102.04,8.8274]
[1770132934566,75.09185624,102.14,102.05,81.01727943]
[1770132934771,75.09185624,102.17,102.07,72.19077943]
[1770132934968,75.09185624,102.16,102.04,72.19077943]
[1770132935167,75.09185624,102.14,102.04,72.19077943]
[1770132935773,75.09185624,102.14,102.04,81.01817943]
[1770132936070,75.09185624,102.14,102.04,72.19077943]
[1770132937980,75.09185624,102.14,102.04,81.01807943]
[1770132938173,232.18,102.17,102.01,72.19077943]
[1770132938174,75.09185624,102.11,102.01,72.19077943]
[1770132938379,306.93185624,102.11,102.01,72.19077943]
[1770132938575,75.09185624,102.1,102.01,72.19077943]
[1770132938774,75.09185624,102.08,101.98,72.19077943]
[1770132939078,75.09185624,102.05,101.95,209.62707943]
[1770132939279,306.85185624,102.05,101.97,8.8335]
[1770132939471,306.85185624,102.05,101.95,72.19077943]
[1770132939774,75.09185624,102.04,101.95,72.19077943]
[1770132939979,220.13185624,102.04,101.95,81.02597943]
[1770132940175,220.13185624,102.04,101.95,209.62787943]
[1770132940775,220.13185624,102.04,101.97,209.60217943]
[1770132940776,145.04,102.04,101.97,209.60217943]
[1770132940980,75.09185624,102.07,101.97,209.60217943]
[1770132941177,75.09185624,102.07,101.97,72.19077943]
[1770132941378,75.09185624,102.07,101.94,137.4407]
[1770132941379,100.35342358,102.05,101.94,209.63147943]
[1770132941575,75.09185624,102.04,101.94,72.19077943]
[1770132941776,25.26156734,102.05,101.94,72.19077943]
[1770132941777,210.33185624,102.03,101.94,72.19077943]
[1770132941972,75.09185624,102.02,101.94,72.19077943]
[1770132942176,75.09185624,102.01,101.91,72.19077943]
[1770132942371,25.26156734,101.99,101.88,209.72227943]
[1770132942575,100.35342358,101.99,101.88,209.72097943]
[1770132942778,100.35342358,101.99,101.9,72.19077943]
[1770132943077,100.35342358,101.99,101.9,81.02987943]
[1770132943669,75.09185624,101.98,101.9,72.19077943]
[1770132943870,307.05185624,101.98,101.9,72.19077943]
[1770132944072,75.09185624,101.97,101.86,209.74977943]
[1770132944274,75.09185624,101.97,101.87,72.19077943]
[1770132944581,75.09185624,101.97,101.87,209.73677943]
[1770132944777,75.09185624,101.97,101.87,209.72457943]
[1770132944977,75.09185624,101.97,101.88,72.19077943]
[1770132946279,75.09185624,101.97,101.89,218.55047943]
[1770132946581,231.96,101.98,101.9,72.19077943]
[1770132946784,231.96,101.98,101.91,72.19077943]
[1770132947478,231.96,101.98,101.88,218.56057943]
[1770132947874,231.96,101.98,101.89,209.70967943]
[1770132948283,231.96,101.98,101.89,72.19077943]
[1770132948784,75.09185624,101.98,101.89,72.19077943]
[1770132948979,307.51185624,101.98,101.89,72.19077943]
[1770132950283,75.09185624,101.96,101.86,81.03337943]
[1770132951884,75.09185624,101.96,101.87,211.06131392]
[1770132952079,75.09185624,101.96,101.88,73.51641392]
[1770132952783,75.09185624,101.96,101.88,82.35751392]
[1770132953180,75.09185624,101.96,101.88,73.51641392]
[1770132954184,75.09185624,101.96,101.88,82.35761392]
[1770132954984,232.42,101.98,101.89,84.68393303]
[1770132955184,232.42,101.98,101.89,75.84353303]
[1770132955384,306.44493852,101.98,101.89,75.84353303]
[1770132955985,306.44493852,101.98,101.89,84.68383303]
[1770132956184,74.02493852,101.96,101.86,75.84353303]
[1770132956387,6.60959446,101.94,101.86,75.84353303]
[1770132956588,6.60959446,101.94,101.87,8.842]
[1770132956991,6.60959446,101.94,101.87,84.68553303]
[1770132957188,6.60959446,101.92,101.84,75.84353303]
[1770132957386,80.63453298,101.9,101.82,2.77948636]
[1770132957587,6.60959446,101.88,101.82,2.77948636]
[1770132958393,6.60959446,101.88,101.79,137.6432]
[1770132958394,6.60959446,101.86,101.78,213.50923303]
[1770132958785,6.60959446,101.88,101.81,8.8473]
[1770132959784,6.60959446,101.88,101.79,84.69213303]
[1770132959985,6.60959446,101.88,101.79,75.84353303]
[1770132960294,6.60959446,101.88,101.8,75.84353303]
[1770132960591,6.60959446,101.88,101.8,84.69173303]
[1770132960785,80.63453298,101.86,101.77,213.51413303]
[1770132960990,6.60959446,101.84,101.77,75.84353303]
[1770132961295,6.60959446,101.84,101.74,213.55503303]
[1770132961296,6.60959446,101.82,101.74,213.55503303]
[1770132961596,6.60959446,101.82,101.76,8.8516]
[1770132961790,6.60959446,101.84,101.77,213.52533303]
[1770132961995,6.60959446,101.84,101.77,75.84353303]
[1770132962385,80.63453298,101.82,101.73,137.7357]
[1770132962692,6.60959446,101.77,101.7,84.70023303]
[1770132962897,6.60959446,101.77,101.7,222.47473303]
[1770132963091,6.60959446,101.79,101.72,213.59303303]
[1770132963291,80.63453298,101.79,101.69,75.84353303]
[1770132963492,6.60959446,101.77,101.69,75.84353303]
[1770132963688,74.02493852,101.79,101.7,84.70023303]
[1770132963887,6.60959446,101.78,101.7,84.70023303]
[1770132964094,6.60959446,101.78,101.7,75.84353303]
[1770132964396,6.60959446,101.78,101.7,213.61993303]
[1770132964694,6.60959446,101.81,101.72,213.59223303]
[1770132964893,6.60959446,101.81,101.73,137.7359]
[1770132965093,80.63453298,101.83,101.73,213.57943303]
[1770132965289,6.60959446,101.81,101.73,213.57943303]
[1770132965591,6.60959446,101.81,101.73,75.84353303]
[1770132965997,6.60959446,101.81,101.73,213.57843303]
[1770132966387,306.42493852,101.83,101.74,8.8533]
[1770132966587,6.60959446,101.81,101.74,146.5746]
[1770132966887,6.60959446,101.83,101.76,137.6953]
[1770132967089,238.94959446,101.85,101.76,222.39033303]
[1770132967294,6.60959446,101.85,101.76,213.53883303]
[1770132967493,74.02493852,101.86,101.76,75.84353303]
[1770132967792,74.02493852,101.86,101.73,137.7349]
[1770132967793,80.63453298,101.83,101.73,75.84353303]
[1770132967996,6.60959446,101.81,101.73,75.84353303]
[1770132968191,6.60959446,101.81,101.74,75.84353303]
[1770132968998,80.63453298,101.83,101.74,75.84353303]
[1770132969194,74.02493852,101.83,101.74,75.84353303]
[1770132969401,6.60959446,101.82,101.74,75.84353303]
[1770132970103,6.60959446,101.82,101.74,84.69673303]
[1770132970299,74.02493852,101.86,101.77,75.84353303]
[1770132970598,6.60959446,101.87,101.78,84.69333303]
[1770132970803,80.63453298,101.87,101.78,75.84353303]
[1770132971100,80.63453298,101.87,101.75,75.84353303]
[1770132971101,6.60959446,101.85,101.75,75.84353303]
[1770132971299,6.60959446,101.85,101.76,84.69463303]
[1770132972093,6.60959446,101.85,101.77,84.69423303]
[1770132972495,6.62191602,101.83,101.74,75.84353303]
[1770132972798,6.62191602,101.81,101.74,75.84353303]
[1770132973098,80.64685454,101.83,101.75,75.84353303]
[1770132973698,6.62191602,101.85,101.76,213.53623303]
[1770132973893,74.02493852,101.86,101.77,75.84353303]
[1770132974600,6.62191602,101.87,101.79,75.84353303]
[1770132975199,80.64685454,101.89,101.79,84.69263303]
[1770132975801,6.62191602,101.87,101.79,75.84353303]
[1770132976100,80.64685454,101.87,101.77,84.69383303]
[1770132976492,80.64685454,101.87,101.78,8.85]
[1770132976905,80.64685454,101.87,101.78,84.69353303]
[1770132977201,80.64685454,101.87,101.78,75.84353303]
[1770132977798,80.64685454,101.87,101.79,84.69263303]
[1770132977998,80.64685454,101.9,101.8,75.84353303]
[1770132978900,80.64685454,101.9,101.81,213.46893303]
[1770132979102,80.64685454,101.9,101.81,75.84353303]
[1770132979299,80.64685454,101.88,101.79,75.84353303]
[1770132979503,80.64685454,101.88,101.8,8.8477]
[1770132979907,6.62191602,101.9,101.83,8.8455]
[1770132980110,6.62191602,101.9,101.82,75.84353303]
[1770132980111,80.64685454,101.9,101.82,75.84353303]
[1770132980302,82.37846495,101.88,101.79,75.84353303]
[1770132980505,82.37846495,101.84,101.76,69.63095452]
[1770132980701,82.37846495,101.84,101.73,207.36245452]
[1770132980702,6.62191602,101.82,101.73,207.36245452]
[1770132980901,6.62191602,101.82,101.76,8.8516]
[1770132981101,6.62191602,101.82,101.73,207.36245452]
[1770132981302,6.62191602,101.82,101.74,137.7215]
[1770132981502,75.75654893,101.84,101.75,69.63095452]
[1770132981702,6.62191602,101.86,101.79,207.28425452]
[1770132981907,82.37846495,101.9,101.82,137.6125]
[1770132982213,82.37846495,101.9,101.83,8.8456]
[1770132982511,82.37846495,101.9,101.81,69.63095452]
[1770132983105,82.37846495,101.9,101.81,78.47825452]
[1770132983406,82.37846495,101.9,101.81,69.63095452]
[1770132983811,82.37846495,101.9,101.81,78.47835452]
[1770132984105,6.62191602,101.88,101.81,69.63095452]
[1770132984408,6.62191602,101.88,101.81,78.47835452]
[1770132984805,82.37846495,101.88,101.79,146.5016]
[1770132985011,82.37846495,101.88,101.79,8.8484]
[1770132985905,6.62191602,101.88,101.8,69.63095452]
[1770132986206,82.37846495,101.88,101.8,69.63095452]
[1770132986402,82.37846495,101.84,101.74,207.34315452]
[1770132986606,6.62191602,101.8,101.74,69.63095452]
[1770132986809,6.62191602,101.8,101.71,207.38245452]
[1770132987004,6.62191602,101.8,101.72,137.7482]
[1770132987203,6.62191602,101.8,101.72,207.37915452]
[1770132987402,313.23846495,101.82,101.74,207.35055452]
[1770132987611,313.23846495,101.82,101.74,69.63095452]
[1770132987807,230.86,101.82,101.76,8.8516]
[1770132988008,237.48191602,101.82,101.74,69.63095452]
[1770132988207,6.62191602,101.82,101.74,69.63095452]
[1770132988615,6.62191602,101.8,101.71,207.39255452]
[1770132988915,6.62191602,101.8,101.73,69.63095452]
[1770132989218,204.29846495,101.82,101.74,8.8535]
[1770132989817,204.29846495,101.82,101.73,69.63095452]
[1770132990218,6.62191602,101.8,101.73,69.63095452]
[1770132992119,6.62191602,101.78,101.7,69.63095452]
[1770132992324,82.37846495,101.8,101.72,78.48625452]
[1770132993021,82.37846495,101.8,101.72,69.63095452]
[1770132994625,313.45846495,101.82,101.73,69.63095452]
[1770132994926,6.62191602,101.8,101.71,69.63095452]
[1770132995422,6.62191602,101.8,101.72,8.8553]
[1770132995614,231.16,101.82,101.73,137.7335]
[1770132995615,237.78191602,101.82,101.73,137.7335]
[1770132995820,237.78191602,101.82,101.74,69.63095452]
[1770132996424,6.62191602,101.84,101.75,69.63095452]
[1770132996719,6.62191602,101.8,101.72,69.63095452]
[1770132997119,6.62191602,101.84,101.76,69.63095452]
[1770132997320,82.37846495,101.88,101.79,69.63095452]
[1770132997525,6.62191602,101.9,101.81,78.47825452]
[1770132997925,199.83654893,101.91,101.78,137.6645]
[1770132997926,82.37846495,101.88,101.78,69.63095452]
[1770132998226,6.62191602,101.9,101.8,69.63095452]
[1770132998627,82.37846495,101.9,101.8,69.63095452]
[1770132999122,82.37846495,101.9,101.81,8.8474]
[1770132999423,82.37846495,101.9,101.8,69.63095452]
[1770132999620,6.62191602,101.88,101.8,78.47925452]
[1770132999922,82.37846495,101.9,101.78,137.667]
[1770133000123,6.62191602,101.88,101.79,69.63095452]
[1770133000523,82.37846495,101.88,101.79,69.63095452]
[1770133001925,82.37846495,101.88,101.79,207.28505452]
[1770133002321,6.62191602,101.86,101.79,69.63095452]
[1770133003423,75.75654893,101.88,101.79,207.28255452]
[1770133003622,155.53318516,101.95,101.79,207.28255452]
[1770133003623,75.75654893,101.95,101.85,69.63095452]
[1770133003818,82.37846495,101.94,101.86,8.8423]
[1770133004018,82.37846495,101.92,101.83,9.02862317]
[1770133004227,82.37846495,101.92,101.82,207.24275452]
[1770133004727,6.62191602,101.9,101.82,69.63095452]
[1770133004925,82.37846495,101.92,101.83,78.47635452]
[1770133005628,138.98191602,101.94,101.85,69.63095452]
[1770133005826,6.62191602,101.94,101.85,69.63095452]
[1770133006128,6.62191602,101.94,101.86,8.843]
[1770133006428,82.37846495,101.98,101.89,207.14875452]
[1770133006628,82.37846495,101.98,101.89,69.63095452]
[1770133007630,82.37846495,101.98,101.9,8.8395]
[1770133008123,6.62191602,101.98,101.9,69.63095452]
[1770133008327,6.62191602,101.98,101.89,207.14905452]
[1770133008523,82.37846495,101.98,101.88,69.63095452]
[1770133008724,6.62191602,101.96,101.89,8.8403]
[1770133008925,6.62191602,101.96,101.88,69.63095452]
[1770133009320,6.62191602,101.96,101.88,78.47215452]
[1770133009521,6.62191602,101.94,101.85,207.19375452]
[1770133009726,6.62191602,101.92,101.83,207.22095452]
[1770133009922,6.62191602,101.92,101.83,69.63095452]
[1770133010122,82.37846495,101.92,101.83,207.22975452]
[1770133010326,82.37846495,101.92,101.83,69.63095452]
[1770133011027,6.62191602,101.9,101.83,69.63095452]
[1770133011834,6.62191602,101.9,101.83,78.47645452]
[1770133012134,82.37846495,101.92,101.84,74.128824]
[1770133012333,75.75654893,101.92,101.84,74.128824]
[1770133012533,6.62191602,101.95,101.88,74.128824]
[1770133012728,229.82,101.96,101.89,74.128824]
[1770133013436,6.62191602,101.95,101.86,74.46794448]
[1770133014230,6.62191602,101.91,101.83,83.31294448]
[1770133014433,72.99271789,101.93,101.83,83.31294448]
[1770133014434,79.61463391,101.93,101.83,74.46794448]
[1770133014634,79.61463391,101.93,101.83,212.06824448]
[1770133015130,79.61463391,101.93,101.84,74.46794448]
[1770133015532,6.62191602,101.95,101.85,74.46794448]
[1770133015733,6.62191602,101.95,101.86,74.46794448]
[1770133015927,6.62191602,101.95,101.83,391.82]
[1770133016130,6.62191602,101.93,101.84,74.46794448]
[1770133016536,79.61463391,101.93,101.84,74.46794448]
[1770133016735,6.62191602,101.91,101.84,74.46794448]
[1770133017531,79.61463391,101.91,101.81,83.31464448]
[1770133017736,79.61463391,101.91,101.81,74.46794448]
[1770133018735,79.61463391,101.91,101.82,83.31434448]
[1770133019438,6.62191602,101.91,101.83,83.31344448]
[1770133019932,79.61463391,101.91,101.81,8.8468]
[1770133020129,6.62191602,101.89,101.81,83.31474448]
[1770133020328,72.99271789,101.92,101.81,74.46794448]
[1770133020538,6.62191602,101.91,101.84,8.8445]
[1770133020839,79.61463391,101.91,101.82,74.46794448]
[1770133021434,6.62191602,101.9,101.82,74.46794448]
[1770133022437,79.61463391,101.88,101.8,8.8476]
[1770133022737,79.61463391,101.88,101.8,212.10864448]
[1770133022930,6.62191602,101.9,101.82,74.46794448]
[1770133023136,6.62191602,101.92,101.84,74.46794448]
[1770133023333,342.82313038,102.01,101.88,212.00004448]
[1770133023334,79.61463391,101.98,101.88,212.00004448]
[1770133023736,79.61463391,101.98,101.89,8.8405]
[1770133023937,79.61463391,101.94,101.85,212.03824448]
[1770133024134,72.99271789,101.94,101.85,74.46794448]
[1770133024332,79.61463391,101.94,101.82,74.46794448]
[1770133024535,121.12,101.95,101.8,212.10814448]
[1770133024536,72.99271789,101.89,101.8,212.10814448]
[1770133024941,308.67463391,101.92,101.82,212.08154448]
[1770133025138,72.99271789,101.91,101.83,212.06544448]
[1770133025536,72.99271789,101.91,101.83,74.46794448]
[1770133026049,79.61463391,101.94,101.85,8.844]
[1770133026339,72.99271789,101.97,101.87,212.01474448]
[1770133026535,72.99271789,101.96,101.88,8.8414]
[1770133026735,79.61463391,101.96,101.85,137.5727]
[1770133027142,72.99271789,101.95,101.87,8.8421]
[1770133027343,72.99271789,101.95,101.84,212.05444448]
[1770133027544,79.61463391,101.92,101.81,466.28794448]
[1770133027743,72.99271789,101.91,101.81,74.46794448]
[1770133028143,72.99271789,101.91,101.81,83.31534448]
[1770133028342,72.99271789,101.91,101.81,74.46794448]
[1770133029542,72.99271789,101.87,101.78,74.46794448]
[1770133029842,291.05271789,101.87,101.78,74.46794448]
[1770133030041,72.99271789,101.87,101.78,74.46794448]
[1770133030648,72.99271789,101.89,101.78,74.46794448]
[1770133031145,79.61463391,101.88,101.78,74.46794448]
[1770133031346,6.62191602,101.9,101.79,83.31694448]
[1770133031547,72.99271789,101.91,101.81,74.46794448]
[1770133031748,6.62191602,101.9,101.81,74.46794448]
[1770133032045,79.61463391,101.84,101.75,74.46794448]
[1770133032445,6.6233614,101.84,101.75,74.46794448]
[1770133032750,6.6233614,101.86,101.75,74.46794448]
[1770133032950,79.61607929,101.88,101.77,74.46794448]
[1770133034044,79.61607929,101.86,101.77,74.46794448]
[1770133034246,79.61607929,101.84,101.74,74.46794448]
[1770133035049,6.6233614,101.86,101.74,83.49656765]
[1770133035448,6.6233614,101.86,101.76,74.46794448]
[1770133035751,72.99271789,101.87,101.76,74.46794448]
[1770133036047,72.99271789,101.87,101.78,74.46794448]
[1770133036354,72.99271789,101.85,101.75,74.46794448]
[1770133036851,72.99271789,101.85,101.75,83.32044448]
[1770133037042,15.4665614,101.86,101.75,74.46794448]
[1770133037043,79.61607929,101.84,101.75,74.46794448]
[1770133037241,6.6233614,101.82,101.75,74.46794448]
[1770133037441,72.99271789,101.84,101.75,74.46794448]
[1770133037442,79.61607929,101.84,101.75,74.46794448]
[1770133037648,72.99271789,101.84,101.75,74.46794448]
[1770133038043,79.61607929,101.84,101.75,74.46794448]
[1770133038244,79.61607929,101.82,101.72,83.49656765]
[1770133038444,79.61607929,101.82,101.72,74.46794448]
[1770133039047,6.6233614,101.82,101.72,83.49656765]
[1770133039248,79.61607929,101.84,101.74,74.46794448]
[1770133039445,79.61607929,101.84,101.74,83.32144448]
[1770133039649,79.61607929,101.84,101.74,92.35006765]
[1770133040047,79.61607929,101.84,101.74,83.32144448]
[1770133040250,79.61607929,101.84,101.74,74.46794448]
[1770133040650,6.6233614,101.82,101.74,74.46794448]
[1770133040844,82.0803891,101.82,101.74,74.46794448]
[1770133041053,6.6233614,101.8,101.71,71.88686979]
[1770133041252,6.6233614,101.82,101.72,71.88686979]
[1770133041453,82.0803891,101.84,101.72,80.91549296]
[1770133041854,82.0803891,101.82,101.73,71.88686979]
[1770133042050,6.6233614,101.8,101.73,71.88686979]
[1770133042356,82.0803891,101.82,101.73,71.88686979]
[1770133042849,6.6233614,101.84,101.75,71.88686979]
[1770133043549,82.0803891,101.84,101.75,80.91549296]
[1770133043746,82.0803891,101.82,101.72,80.91549296]
[1770133043955,82.0803891,101.8,101.72,71.88686979]
[1770133046149,6.6233614,101.82,101.73,71.88686979]
[1770133046349,6.6233614,101.79,101.7,71.88686979]
[1770133046954,6.6233614,101.81,101.72,71.88686979]
[1770133047156,82.0803891,101.83,101.73,71.88686979]
[1770133047357,82.0803891,101.83,101.76,71.88686979]
[1770133047655,82.0803891,101.83,101.73,71.88686979]
[1770133047856,82.0803891,101.83,101.74,80.74036979]
[1770133048057,75.4570277,101.83,101.75,71.88686979]
[1770133048448,6.6233614,101.85,101.76,71.88686979]
[1770133049147,520.96663038,101.93,101.76,71.88686979]
[1770133049148,82.0803891,101.87,101.79,71.88686979]
[1770133049554,82.0803891,101.87,101.79,80.73586979]
[1770133050256,82.0803891,101.87,101.79,71.88686979]
[1770133050458,82.0803891,101.87,101.77,8.8502]
[1770133050664,6.6233614,101.85,101.77,8.8502]
[1770133050865,82.0803891,101.85,101.76,80.73866979]
[1770133051357,82.0803891,101.83,101.75,80.73936979]
[1770133051564,6.6233614,101.85,101.75,71.88686979]
[1770133051863,82.0803891,101.85,101.75,71.88686979]
[1770133052265,6.6233614,101.83,101.75,71.88686979]
[1770133052459,82.0803891,101.83,101.75,71.88686979]
[1770133052862,82.0803891,101.83,101.75,80.73956979]
[1770133053364,6.6233614,101.85,101.76,80.73826979]
[1770133053564,6.6233614,101.85,101.76,71.88686979]
[1770133053760,82.0803891,101.85,101.76,71.88686979]
[1770133053960,75.4570277,101.91,101.81,71.88686979]
[1770133054159,82.0803891,101.91,101.82,209.49996979]
[1770133054356,75.4570277,101.91,101.83,71.88686979]
[1770133054767,82.0803891,101.91,101.83,71.88686979]
[1770133054957,82.0803891,101.91,101.81,137.6237]
[1770133055161,82.0803891,101.91,101.8,71.88686979]
[1770133055363,82.0803891,101.89,101.8,71.88686979]
[1770133056463,82.0803891,101.87,101.77,218.58499296]
[1770133056654,82.0803891,101.87,101.77,209.55636979]
[1770133056858,82.0803891,101.87,101.77,71.88686979]
[1770133057055,6.6233614,101.85,101.77,71.88686979]
[1770133057255,82.0803891,101.85,101.77,71.88686979]
[1770133058162,227.76,101.87,101.74,80.73986979]
[1770133058163,82.0803891,101.83,101.74,80.73986979]
[1770133058364,82.0803891,101.83,101.74,71.88686979]
[1770133058565,6.6233614,101.81,101.74,71.88686979]
[1770133058770,82.0803891,101.81,101.71,80.91549296]
[1770133059469,82.0803891,101.81,101.72,209.63326979]
[1770133059666,234.4033614,101.83,101.74,71.88686979]
[1770133059868,6.6233614,101.89,101.8,71.88686979]
[1770133060077,82.0803891,101.89,101.81,8.8473]
[1770133060267,75.4570277,101.89,101.81,8.8473]
[1770133060463,75.4570277,101.89,101.82,8.8465]
[1770133061064,82.0803891,101.91,101.82,71.88686979]
[1770133061276,82.0803891,101.91,101.8,80.91549296]
[1770133061470,82.0803891,101.89,101.8,71.88686979]
[1770133061670,82.0803891,101.87,101.77,80.91549296]
[1770133061974,6.6233614,101.85,101.77,71.88686979]
[1770133062176,6.6233614,101.85,101.78,8.8498]
[1770133062478,6.6233614,101.85,101.77,209.56586979]
[1770133062771,309.7403891,101.87,101.77,209.56586979]
[1770133062970,75.4570277,101.86,101.77,80.73706979]
[1770133063174,75.4570277,101.86,101.77,71.88686979]
[1770133063367,75.4570277,101.86,101.77,209.56836979]
[1770133063872,75.4570277,101.86,101.77,71.88686979]
[1770133064070,82.0803891,101.85,101.77,71.88686979]
[1770133064879,82.0803891,101.83,101.74,92.99048959]
[1770133065172,82.0803891,101.83,101.74,80.91549296]
[1770133065379,82.0803891,101.83,101.74,71.88686979]
[1770133065672,82.0803891,101.81,101.72,80.91549296]
[1770133065879,227.5,101.83,101.72,80.91549296]
[1770133066077,6.6233614,101.82,101.73,80.91549296]
[1770133066278,6.6233614,101.82,101.74,80.91549296]
[1770133066478,82.0803891,101.82,101.74,71.88686979]
[1770133067078,82.0803891,101.82,101.74,80.74036979]
[1770133067672,227.5,101.83,101.75,80.73946979]
[1770133068075,302.9570277,101.83,101.75,71.88686979]
[1770133068276,82.0803891,101.82,101.73,9.02862317]
[1770133068675,82.0803891,101.82,101.74,8.8533]
[1770133068877,82.0803891,101.82,101.74,71.88686979]
[1770133069074,6.6233614,101.84,101.76,71.88686979]
[1770133069389,82.0803891,101.88,101.79,80.91549296]
[1770133069687,82.0803891,101.88,101.8,71.88686979]
[1770133069688,227.9403891,101.88,101.8,71.88686979]
[1770133069881,221.3170277,101.88,101.8,71.88686979]
[1770133070186,145.86,101.88,101.8,209.52756979]
[1770133070388,77.27968738,101.94,101.84,70.69178768]
[1770133070680,77.27968738,101.96,101.87,70.69178768]
[1770133070883,6.6233614,101.95,101.87,70.69178768]
[1770133071084,77.27968738,101.95,101.87,88.56221085]
[1770133071279,77.27968738,101.95,101.87,70.69178768]
[1770133071985,6.6233614,101.93,101.84,217.30511085]
[1770133072179,77.27968738,101.95,101.86,8.8427]
[1770133072483,121.98,101.98,101.89,208.21058768]
[1770133072484,70.65632598,101.98,101.89,208.21058768]
[1770133072679,70.65632598,101.98,101.89,217.23921085]
[1770133072881,70.65632598,101.98,101.9,217.03728768]
[1770133073080,70.65632598,101.98,101.9,79.53118768]
[1770133073286,70.65632598,101.98,101.9,70.69178768]
[1770133073484,81.60689809,101.97,101.89,8.8403]
[1770133073986,81.60689809,101.97,101.89,146.3598]
[1770133074187,81.60689809,101.97,101.89,217.19087433]
[1770133074486,234.4233614,101.99,101.9,208.33737433]
[1770133074683,74.98353669,102.0,101.92,208.31047433]
[1770133074983,74.98353669,102.0,101.93,8.8368]
[1770133075482,74.98353669,102.03,101.94,137.4488]
[1770133075792,81.60689809,102.02,101.93,70.83107433]
[1770133075977,81.60689809,102.02,101.93,208.29637433]
[1770133076177,74.98353669,102.02,101.94,70.83107433]
[1770133076688,81.60689809,102.02,101.94,70.83107433]
[1770133076886,81.60689809,102.02,101.91,208.32377433]
[1770133077190,81.60689809,102.0,101.91,70.83107433]
[1770133077790,81.60689809,102.0,101.92,70.83107433]
[1770133078182,81.60689809,102.0,101.89,208.34447433]
[1770133078388,81.60689809,101.98,101.9,70.83107433]
[1770133078582,6.6233614,102.0,101.91,208.32327433]
[1770133078985,81.60689809,102.0,101.91,79.66917433]
[1770133079186,81.60689809,102.0,101.91,70.83107433]
[1770133080287,81.60689809,102.0,101.91,79.66957433]
[1770133080489,74.98353669,102.0,101.92,70.83107433]
[1770133080787,74.98353669,102.0,101.89,70.83107433]
[1770133080788,6.6233614,101.96,101.89,70.83107433]
[1770133080994,6.6233614,101.94,101.86,70.83107433]
[1770133081190,6.6233614,101.92,101.83,70.83107433]
[1770133081486,137.44,101.95,101.82,208.44497433]
[1770133081487,6.6233614,101.9,101.82,208.44497433]
[1770133081692,6.6233614,101.92,101.83,208.43077433]
[1770133081891,6.6233614,101.92,101.84,70.83107433]
[1770133082088,74.98353669,101.96,101.88,70.83107433]
[1770133082394,81.60689809,101.99,101.89,70.83107433]
[1770133082596,76.37167748,102.26,102.13,137.196]
[1770133082787,12.01218075,102.3,102.12,137.2069]
[1770133082788,76.37167748,102.22,102.12,137.198]
[1770133082991,76.37167748,102.22,102.12,137.2096]
[1770133083191,76.37167748,102.22,102.14,137.1762]
[1770133083386,76.37167748,102.25,102.18,137.1181]
[1770133083591,82.99503888,102.25,102.17,142.81043475]
[1770133083786,76.37167748,102.18,102.11,137.2171]
[1770133083992,76.37167748,102.17,102.11,137.2171]
[1770133084486,76.37167748,102.16,102.09,137.2496]
[1770133084686,76.37167748,102.16,102.1,137.2354]
[1770133085290,76.37167748,102.16,102.08,146.0769]
[1770133085490,76.37167748,102.13,102.06,137.2889]
[1770133085693,232.12,102.12,102.06,137.2889]
[1770133086098,232.12,102.12,102.07,137.2748]
[1770133086395,76.37167748,102.11,102.05,137.2922]
[1770133086992,76.37167748,102.11,102.06,137.2829]
[1770133087398,232.72,102.12,102.03,137.3307]
[1770133087600,232.72,102.12,102.02,137.3323]
[1770133087799,101.56112452,102.11,101.99,137.381]
[1770133088008,76.37167748,102.1,102.0,137.37]
[1770133089200,76.37167748,102.1,101.97,146.2352]
[1770133089493,232.54,102.11,102.01,146.1856]
[1770133089693,308.99167748,102.15,102.04,137.3152]
[1770133090095,308.99167748,102.15,102.04,146.1427]
[1770133090298,76.37167748,102.14,102.01,137.3565]
[1770133090496,76.37167748,102.12,102.0,137.3601]
[1770133090699,76.37167748,102.12,101.99,137.3813]
[1770133090892,76.37167748,102.12,102.01,137.3573]
[1770133091295,76.37167748,102.12,102.02,137.3428]
[1770133091598,76.37167748,102.12,102.01,137.3573]
[1770133092003,76.37167748,102.12,102.02,137.3419]
[1770133092305,232.68,102.13,102.04,137.3174]